[Event "Titled Tuesday Blitz October 31 Early 2023"]
[White "Elbebiber"]
[Black "parintele_chess"]
[WhiteElo "2138"]
[BlackElo "2252"]
[Result "1-0"]
[Round "11"]
[TimeControl "180+1"]
[Date "2023.10.31"]
[WhiteClock "0:00:31"]
[BlackClock "0:00:14"]
[Board "115"]

1. f4 {[%clk 0:02:55]}  e5 {[%clk 0:02:59]} 2. fxe5 {[%clk 0:02:55]}  d6 {[%clk 0:03:00]} 3. exd6 {[%clk 0:02:53]}  Bxd6 {[%clk 0:03:01]} 4. Nf3 {[%clk 0:02:52]}  g5 {[%clk 0:03:01]} 5. d4 {[%clk 0:02:50]}  g4 {[%clk 0:03:02]} 6. Ne5 {[%clk 0:02:48]}  Bxe5 {[%clk 0:03:01]} 7. dxe5 {[%clk 0:02:48]}  Qxd1+ {[%clk 0:03:02]} 8. Kxd1 {[%clk 0:02:48]}  Nc6 {[%clk 0:03:02]} 9. Nc3 {[%clk 0:02:44]}  Be6 {[%clk 0:02:41]} 10. Bg5 {[%clk 0:02:39]}  Nxe5 {[%clk 0:02:31]} 11. Nb5 {[%clk 0:02:34]}  Kd7 {[%clk 0:02:10]} 12. Ke1 {[%clk 0:02:33]}  c5 {[%clk 0:01:37]} 13. Rd1+ {[%clk 0:02:12]}  Kc6 {[%clk 0:01:37]} 14. e4 {[%clk 0:01:40]}  Nc4 {[%clk 0:01:06]} 15. a4 {[%clk 0:01:14]}  Kb6 {[%clk 0:00:44]} 16. Bd8+ {[%clk 0:00:58]}  Rxd8 {[%clk 0:00:32]} 17. Rxd8 {[%clk 0:00:57]}  a6 {[%clk 0:00:26]} 18. Bxc4 {[%clk 0:00:50]}  Bxc4 {[%clk 0:00:21]} 19. Nc3 {[%clk 0:00:49]}  Kc7 {[%clk 0:00:18]} 20. Rf8 {[%clk 0:00:45]}  b5 {[%clk 0:00:18]} 21. axb5 {[%clk 0:00:44]}  axb5 {[%clk 0:00:18]} 22. Kf2 {[%clk 0:00:42]}  b4 {[%clk 0:00:18]} 23. Ne2 {[%clk 0:00:38]}  h5 {[%clk 0:00:15]} 24. b3 {[%clk 0:00:36]}  Be6 {[%clk 0:00:14]} 25. Ra1 {[%clk 0:00:35]}  Kd6 {[%clk 0:00:12]} 26. Raa8 {[%clk 0:00:33]}  f6 {[%clk 0:00:13]} 27. Nf4 {[%clk 0:00:32]}  c4 {[%clk 0:00:08]} 28. Nxe6 {[%clk 0:00:30]}  cxb3 {[%clk 0:00:08]} 29. cxb3 {[%clk 0:00:30]}  Kxe6 {[%clk 0:00:07]} 30. Rxg8 {[%clk 0:00:30]}  Rh7 {[%clk 0:00:08]} 31. Rge8+ {[%clk 0:00:30]}  Kd6 {[%clk 0:00:07]} 32. Rad8+ {[%clk 0:00:30]}  Kc7 {[%clk 0:00:07]} 33. Rd4 {[%clk 0:00:30]}  Kc6 {[%clk 0:00:05]} 34. Rxb4 {[%clk 0:00:30]}  Rd7 {[%clk 0:00:05]} 35. Rc4+ {[%clk 0:00:30]}  Kb5 {[%clk 0:00:06]} 36. Ke3 {[%clk 0:00:29]}  Rb7 {[%clk 0:00:04]} 37. Re6 {[%clk 0:00:28]}  f5 {[%clk 0:00:04]} 38. exf5 {[%clk 0:00:28]}  h4 {[%clk 0:00:04]} 39. g3 {[%clk 0:00:28]}  h3 {[%clk 0:00:04]} 40. Re5+ {[%clk 0:00:27]}  Kb6 {[%clk 0:00:03]} 41. Kf4 {[%clk 0:00:27]}  Ka7 {[%clk 0:00:02]} 42. Ra4+ {[%clk 0:00:27]}  Kb8 {[%clk 0:00:02]} 43. b4 {[%clk 0:00:26]}  Kc7 {[%clk 0:00:02]} 44. Rc5+ {[%clk 0:00:26]}  Kb8 {[%clk 0:00:02]} 45. Raa5 {[%clk 0:00:26]}  Rc7 {[%clk 0:00:02]} 46. Rxc7 {[%clk 0:00:25]}  Kxc7 {[%clk 0:00:02]} 47. Re5 {[%clk 0:00:26]}  Kb8 {[%clk 0:00:03]} 48. Re6 {[%clk 0:00:26]}  Kc7 {[%clk 0:00:04]} 49. Kxg4 {[%clk 0:00:27]}  Kb8 {[%clk 0:00:05]} 50. Kxh3 {[%clk 0:00:27]}  Kc7 {[%clk 0:00:05]} 51. Kg4 {[%clk 0:00:28]}  Kb8 {[%clk 0:00:06]} 52. Kg5 {[%clk 0:00:28]}  Kc7 {[%clk 0:00:07]} 53. h4 {[%clk 0:00:28]}  Kb8 {[%clk 0:00:08]} 54. h5 {[%clk 0:00:28]}  Kc7 {[%clk 0:00:09]} 55. h6 {[%clk 0:00:28]}  Kb8 {[%clk 0:00:10]} 56. Re7 {[%clk 0:00:28]}  Kc8 {[%clk 0:00:09]} 57. Kf6 {[%clk 0:00:29]}  Kb8 {[%clk 0:00:10]} 58. h7 {[%clk 0:00:29]}  Kc8 {[%clk 0:00:11]} 59. g4 {[%clk 0:00:30]}  Kb8 {[%clk 0:00:12]} 60. g5 {[%clk 0:00:30]}  Kc8 {[%clk 0:00:13]} 61. g6 {[%clk 0:00:30]}  Kb8 {[%clk 0:00:13]} 62. g7 {[%clk 0:00:31]}  Kc8 {[%clk 0:00:14]} 63. g8=Q# {[%clk 0:00:31]} 1-0


[Site "https://www.chess.com"]

[Event "Titled Tuesday Blitz October 31 Early 2023"]
[White "Feliz Dotel, Dewar Bienvenido"]
[Black "Terletsky, Oleg"]
[WhiteFideId "6402801"]
[BlackFideId "14116774"]
[WhiteElo "2143"]
[BlackElo "2463"]
[Result "0-1"]
[Round "11"]
[TimeControl "180+1"]
[Date "2023.10.31"]
[WhiteClock "0:00:10"]
[BlackClock "0:00:58"]
[Board "117"]

1. d4 {[%clk 0:02:59]}  Nf6 {[%clk 0:02:59]} 2. e3 {[%clk 0:02:59]}  g6 {[%clk 0:02:59]} 3. Nf3 {[%clk 0:03:00]}  Bg7 {[%clk 0:02:59]} 4. Be2 {[%clk 0:03:00]}  O-O {[%clk 0:02:59]} 5. b4 {[%clk 0:03:01]}  b6 {[%clk 0:02:51]} 6. Bb2 {[%clk 0:02:59]}  Bb7 {[%clk 0:02:51]} 7. c4 {[%clk 0:02:59]}  c5 {[%clk 0:02:50]} 8. a3 {[%clk 0:02:58]}  cxd4 {[%clk 0:02:41]} 9. Bxd4 {[%clk 0:02:53]}  Nc6 {[%clk 0:02:38]} 10. Bc3 {[%clk 0:02:52]}  d5 {[%clk 0:02:38]} 11. cxd5 {[%clk 0:02:47]}  Nxd5 {[%clk 0:02:33]} 12. Bxg7 {[%clk 0:02:47]}  Kxg7 {[%clk 0:02:33]} 13. O-O {[%clk 0:02:46]}  Rc8 {[%clk 0:02:30]} 14. Qb3 {[%clk 0:02:45]}  e6 {[%clk 0:02:23]} 15. Rd1 {[%clk 0:02:44]}  Qf6 {[%clk 0:02:22]} 16. Nbd2 {[%clk 0:02:38]}  Nc3 {[%clk 0:02:20]} 17. Bb5 {[%clk 0:01:46]}  Nxd1 {[%clk 0:02:16]} 18. Rxd1 {[%clk 0:01:47]}  Rfd8 {[%clk 0:02:15]} 19. Re1 {[%clk 0:01:40]}  Ne5 {[%clk 0:02:13]} 20. Be2 {[%clk 0:01:26]}  Nxf3+ {[%clk 0:02:09]} 21. Nxf3 {[%clk 0:01:27]}  Bxf3 {[%clk 0:02:03]} 22. Bxf3 {[%clk 0:01:27]}  Qc3 {[%clk 0:02:03]} 23. Qb1 {[%clk 0:01:23]}  Rd2 {[%clk 0:02:00]} 24. h3 {[%clk 0:01:08]}  Qb2 {[%clk 0:01:59]} 25. Qe4 {[%clk 0:01:00]}  Rxf2 {[%clk 0:01:50]} 26. Rb1 {[%clk 0:00:50]}  Qd2 {[%clk 0:01:45]} 27. Rd1 {[%clk 0:00:45]}  Rxg2+ {[%clk 0:01:43]} 28. Bxg2 {[%clk 0:00:36]}  Qxd1+ {[%clk 0:01:42]} 29. Kh2 {[%clk 0:00:36]}  Qd6+ {[%clk 0:01:41]} 30. Kg1 {[%clk 0:00:30]}  Qg3 {[%clk 0:01:20]} 31. Qd4+ {[%clk 0:00:23]}  e5 {[%clk 0:01:19]} 32. Qd2 {[%clk 0:00:15]}  h5 {[%clk 0:01:12]} 33. Kh1 {[%clk 0:00:15]}  h4 {[%clk 0:01:08]} 34. Kg1 {[%clk 0:00:14]}  Rc6 {[%clk 0:01:07]} 35. Kh1 {[%clk 0:00:14]}  Rf6 {[%clk 0:01:06]} 36. Kg1 {[%clk 0:00:11]}  Rf5 {[%clk 0:01:05]} 37. Qe2 {[%clk 0:00:08]}  Rg5 {[%clk 0:01:03]} 38. Qd2 {[%clk 0:00:07]}  Qxh3 {[%clk 0:01:01]} 39. Qf2 {[%clk 0:00:06]}  Rxg2+ {[%clk 0:00:59]} 40. Qxg2 {[%clk 0:00:07]}  Qxg2+ {[%clk 0:00:57]} 41. Kxg2 {[%clk 0:00:07]}  f5 {[%clk 0:00:57]} 42. Kh3 {[%clk 0:00:06]}  g5 {[%clk 0:00:57]} 43. Kg2 {[%clk 0:00:07]}  g4 {[%clk 0:00:57]} 44. b5 {[%clk 0:00:07]}  f4 {[%clk 0:00:57]} 45. exf4 {[%clk 0:00:07]}  exf4 {[%clk 0:00:58]} 46. Kh2 {[%clk 0:00:08]}  Kf6 {[%clk 0:00:58]} 47. Kg2 {[%clk 0:00:08]}  Kg5 {[%clk 0:00:57]} 48. a4 {[%clk 0:00:09]}  f3+ {[%clk 0:00:57]} 49. Kf2 {[%clk 0:00:08]}  Kf4 {[%clk 0:00:57]} 50. Kf1 {[%clk 0:00:08]}  g3 {[%clk 0:00:58]} 51. Kg1 {[%clk 0:00:09]}  f2+ {[%clk 0:00:56]} 52. Kg2 {[%clk 0:00:10]}  h3+ {[%clk 0:00:56]} 53. Kf1 {[%clk 0:00:09]}  Kf3 {[%clk 0:00:57]} 54. a5 {[%clk 0:00:10]}  g2# {[%clk 0:00:58]} 0-1


[Site "https://www.chess.com"]

[Event "Titled Tuesday Blitz October 31 Early 2023"]
[White "kingapolak"]
[Black "Piesik, Piotr"]
[BlackFideId "1136194"]
[WhiteElo "2156"]
[BlackElo "2652"]
[Result "0-1"]
[Round "11"]
[TimeControl "180+1"]
[Date "2023.10.31"]
[WhiteClock "0:00:04"]
[BlackClock "0:01:06"]
[Board "119"]

1. e4 {[%clk 0:03:00]}  g6 {[%clk 0:02:56]} 2. d4 {[%clk 0:02:59]}  Bg7 {[%clk 0:02:57]} 3. Nc3 {[%clk 0:03:00]}  c6 {[%clk 0:02:57]} 4. f3 {[%clk 0:02:59]}  d5 {[%clk 0:02:57]} 5. Be3 {[%clk 0:02:54]}  dxe4 {[%clk 0:02:56]} 6. fxe4 {[%clk 0:02:54]}  Nf6 {[%clk 0:02:57]} 7. Be2 {[%clk 0:02:47]}  e5 {[%clk 0:02:53]} 8. dxe5 {[%clk 0:02:44]}  Qxd1+ {[%clk 0:02:52]} 9. Rxd1 {[%clk 0:02:43]}  Ng4 {[%clk 0:02:53]} 10. Bf4 {[%clk 0:02:40]}  Nxe5 {[%clk 0:02:52]} 11. Nf3 {[%clk 0:02:39]}  Nbd7 {[%clk 0:02:51]} 12. O-O {[%clk 0:02:38]}  O-O {[%clk 0:02:51]} 13. Nxe5 {[%clk 0:02:06]}  Nxe5 {[%clk 0:02:50]} 14. Na4 {[%clk 0:01:50]}  b6 {[%clk 0:02:46]} 15. b3 {[%clk 0:01:49]}  Be6 {[%clk 0:02:45]} 16. Nb2 {[%clk 0:01:45]}  Rfd8 {[%clk 0:02:33]} 17. Nd3 {[%clk 0:01:44]}  Ng4 {[%clk 0:02:15]} 18. h3 {[%clk 0:01:40]}  Bd4+ {[%clk 0:02:14]} 19. Kh1 {[%clk 0:01:38]}  Ne3 {[%clk 0:02:14]} 20. Bxe3 {[%clk 0:01:37]}  Bxe3 {[%clk 0:02:14]} 21. c4 {[%clk 0:01:16]}  a5 {[%clk 0:02:09]} 22. a4 {[%clk 0:01:14]}  Bd4 {[%clk 0:02:00]} 23. Nf4 {[%clk 0:01:12]}  Bc8 {[%clk 0:01:44]} 24. Bf3 {[%clk 0:01:05]}  Bb7 {[%clk 0:01:40]} 25. Rd3 {[%clk 0:01:01]}  Be5 {[%clk 0:01:39]} 26. Be2 {[%clk 0:00:52]}  Bxf4 {[%clk 0:01:31]} 27. Rxf4 {[%clk 0:00:51]}  Rxd3 {[%clk 0:01:31]} 28. Bxd3 {[%clk 0:00:52]}  Rd8 {[%clk 0:01:32]} 29. Rf3 {[%clk 0:00:49]}  c5 {[%clk 0:01:30]} 30. Kg1 {[%clk 0:00:49]}  Kf8 {[%clk 0:01:27]} 31. Kf2 {[%clk 0:00:49]}  Ke7 {[%clk 0:01:27]} 32. Ke3 {[%clk 0:00:49]}  f6 {[%clk 0:01:25]} 33. Rf2 {[%clk 0:00:48]}  Ke6 {[%clk 0:01:24]} 34. g4 {[%clk 0:00:41]}  Rd4 {[%clk 0:01:20]} 35. h4 {[%clk 0:00:39]}  h6 {[%clk 0:01:19]} 36. e5 {[%clk 0:00:29]}  Kxe5 {[%clk 0:01:12]} 37. Bxg6 {[%clk 0:00:28]}  Rxg4 {[%clk 0:01:12]} 38. Bh5 {[%clk 0:00:17]}  Rxh4 {[%clk 0:01:09]} 39. Bf7 {[%clk 0:00:07]}  Rh3+ {[%clk 0:01:07]} 40. Kd2 {[%clk 0:00:04]}  Rxb3 {[%clk 0:01:06]} 0-1


[Site "https://www.chess.com"]

[Event "Titled Tuesday Blitz October 31 Early 2023"]
[White "Fernandez Hernandez, Gerardo"]
[Black "Iskusnyh, Sergei"]
[WhiteFideId "2207400"]
[BlackFideId "4120027"]
[WhiteElo "2153"]
[BlackElo "2531"]
[Result "1-0"]
[Round "11"]
[TimeControl "180+1"]
[Date "2023.10.31"]
[WhiteClock "0:00:45"]
[BlackClock "0:00:12"]
[Board "120"]

1. e4 {[%clk 0:03:00]}  e5 {[%clk 0:02:55]} 2. Nf3 {[%clk 0:02:59]}  Nc6 {[%clk 0:02:55]} 3. d4 {[%clk 0:02:59]}  exd4 {[%clk 0:02:55]} 4. Bc4 {[%clk 0:03:00]}  Nf6 {[%clk 0:02:55]} 5. e5 {[%clk 0:02:59]}  d5 {[%clk 0:02:55]} 6. Bb5 {[%clk 0:02:59]}  Ne4 {[%clk 0:02:54]} 7. Nxd4 {[%clk 0:02:58]}  Bd7 {[%clk 0:02:54]} 8. Bxc6 {[%clk 0:02:57]}  bxc6 {[%clk 0:02:55]} 9. O-O {[%clk 0:02:54]}  Bc5 {[%clk 0:02:53]} 10. f3 {[%clk 0:02:38]}  Ng5 {[%clk 0:02:53]} 11. f4 {[%clk 0:02:38]}  Ne4 {[%clk 0:02:53]} 12. Be3 {[%clk 0:02:39]}  Bb6 {[%clk 0:02:51]} 13. Nc3 {[%clk 0:02:33]}  Nxc3 {[%clk 0:02:39]} 14. bxc3 {[%clk 0:02:32]}  O-O {[%clk 0:02:08]} 15. f5 {[%clk 0:02:24]}  c5 {[%clk 0:02:04]} 16. Nb3 {[%clk 0:02:15]}  Bb5 {[%clk 0:01:51]} 17. Qg4 {[%clk 0:01:57]}  Bxf1 {[%clk 0:01:26]} 18. f6 {[%clk 0:01:53]}  g6 {[%clk 0:01:25]} 19. Qg5 {[%clk 0:01:26]}  Kh8 {[%clk 0:01:23]} 20. Rxf1 {[%clk 0:01:09]}  Rg8 {[%clk 0:01:11]} 21. Rf3 {[%clk 0:01:01]}  Qf8 {[%clk 0:00:18]} 22. Rh3 {[%clk 0:00:51]}  c4 {[%clk 0:00:15]} 23. Rxh7+ {[%clk 0:00:44]}  Kxh7 {[%clk 0:00:14]} 24. Qh4+ {[%clk 0:00:45]}  Qh6 {[%clk 0:00:12]} 25. Qxh6# {[%clk 0:00:45]} 1-0


[Site "https://www.chess.com"]

[Event "Titled Tuesday Blitz October 31 Early 2023"]
[White "Ghosh, Chanchal Kumer"]
[Black "Sarkar, Justin"]
[WhiteFideId "10201858"]
[BlackFideId "2010011"]
[WhiteElo "1970"]
[BlackElo "2228"]
[Result "0-1"]
[Round "11"]
[TimeControl "180+1"]
[Date "2023.10.31"]
[WhiteClock "0:00:00"]
[BlackClock "0:00:14"]
[Board "122"]

1. e4 {[%clk 0:02:59]}  c5 {[%clk 0:02:37]} 2. Nf3 {[%clk 0:02:58]}  e6 {[%clk 0:02:36]} 3. d4 {[%clk 0:02:58]}  cxd4 {[%clk 0:02:36]} 4. Nxd4 {[%clk 0:02:58]}  Nc6 {[%clk 0:02:36]} 5. Nc3 {[%clk 0:02:58]}  d6 {[%clk 0:02:31]} 6. Be3 {[%clk 0:02:56]}  Nf6 {[%clk 0:02:24]} 7. Be2 {[%clk 0:02:56]}  Be7 {[%clk 0:02:19]} 8. O-O {[%clk 0:02:56]}  O-O {[%clk 0:02:16]} 9. f4 {[%clk 0:02:56]}  Bd7 {[%clk 0:02:08]} 10. Bf3 {[%clk 0:02:56]}  Nxd4 {[%clk 0:01:57]} 11. Bxd4 {[%clk 0:02:55]}  Bc6 {[%clk 0:01:49]} 12. Qe2 {[%clk 0:02:51]}  Qc7 {[%clk 0:01:35]} 13. Rad1 {[%clk 0:02:50]}  e5 {[%clk 0:01:25]} 14. Be3 {[%clk 0:02:44]}  exf4 {[%clk 0:01:11]} 15. Bxf4 {[%clk 0:02:42]}  Qb6+ {[%clk 0:01:08]} 16. Kh1 {[%clk 0:02:41]}  Qxb2 {[%clk 0:01:06]} 17. Qd3 {[%clk 0:02:08]}  Qb4 {[%clk 0:00:38]} 18. a3 {[%clk 0:01:32]}  Qc5 {[%clk 0:00:36]} 19. Be3 {[%clk 0:01:19]}  Qa5 {[%clk 0:00:35]} 20. Bd4 {[%clk 0:01:13]}  Rac8 {[%clk 0:00:32]} 21. h3 {[%clk 0:01:07]}  Rfe8 {[%clk 0:00:31]} 22. Rf2 {[%clk 0:00:53]}  Rcd8 {[%clk 0:00:27]} 23. Rdf1 {[%clk 0:00:51]}  Rf8 {[%clk 0:00:20]} 24. a4 {[%clk 0:00:45]}  Nd7 {[%clk 0:00:19]} 25. Nd5 {[%clk 0:00:34]}  Bxd5 {[%clk 0:00:18]} 26. exd5 {[%clk 0:00:34]}  Ne5 {[%clk 0:00:17]} 27. Bxe5 {[%clk 0:00:34]}  dxe5 {[%clk 0:00:16]} 28. c4 {[%clk 0:00:33]}  f5 {[%clk 0:00:14]} 29. Bd1 {[%clk 0:00:30]}  e4 {[%clk 0:00:14]} 30. Qc2 {[%clk 0:00:22]}  Bc5 {[%clk 0:00:13]} 31. Rxf5 {[%clk 0:00:21]}  Rxf5 {[%clk 0:00:13]} 32. Rxf5 {[%clk 0:00:22]}  Qe1+ {[%clk 0:00:13]} 33. Kh2 {[%clk 0:00:16]}  Bd6+ {[%clk 0:00:13]} 34. g3 {[%clk 0:00:13]}  Qxg3+ {[%clk 0:00:13]} 35. Kh1 {[%clk 0:00:13]}  Qxh3+ {[%clk 0:00:14]} 36. Kg1 {[%clk 0:00:00]}  Qxf5 {[%clk 0:00:14]} 0-1


[Site "https://www.chess.com"]

[Event "Titled Tuesday Blitz October 31 Early 2023"]
[White "Desideri, Ricardo Maruchi"]
[Black "Kiseleva, Arina"]
[WhiteFideId "2110440"]
[BlackFideId "4164989"]
[WhiteElo "1956"]
[BlackElo "2212"]
[Result "0-1"]
[Round "11"]
[TimeControl "180+1"]
[Date "2023.10.31"]
[WhiteClock "0:00:00"]
[BlackClock "0:00:13"]
[Board "123"]

1. e4 {[%clk 0:03:00]}  c6 {[%clk 0:02:59]} 2. d4 {[%clk 0:02:59]}  d5 {[%clk 0:03:00]} 3. e5 {[%clk 0:03:00]}  Bf5 {[%clk 0:02:59]} 4. h4 {[%clk 0:02:59]}  h5 {[%clk 0:02:59]} 5. Bd3 {[%clk 0:02:58]}  Bxd3 {[%clk 0:02:58]} 6. Qxd3 {[%clk 0:02:58]}  Qa5+ {[%clk 0:02:56]} 7. b4 {[%clk 0:02:57]}  Qa6 {[%clk 0:02:50]} 8. Qb3 {[%clk 0:02:51]}  e6 {[%clk 0:02:48]} 9. a4 {[%clk 0:02:45]}  b6 {[%clk 0:02:44]} 10. Ne2 {[%clk 0:02:38]}  Nd7 {[%clk 0:02:32]} 11. Nbc3 {[%clk 0:02:36]}  c5 {[%clk 0:02:23]} 12. b5 {[%clk 0:02:32]}  Qb7 {[%clk 0:02:21]} 13. Bf4 {[%clk 0:02:24]}  Nh6 {[%clk 0:02:18]} 14. O-O {[%clk 0:02:17]}  Nf5 {[%clk 0:02:17]} 15. g3 {[%clk 0:02:01]}  cxd4 {[%clk 0:02:08]} 16. Na2 {[%clk 0:01:52]}  Bc5 {[%clk 0:02:03]} 17. Nb4 {[%clk 0:01:50]}  O-O {[%clk 0:01:51]} 18. Nc6 {[%clk 0:01:48]}  Nb8 {[%clk 0:01:39]} 19. Nb4 {[%clk 0:01:36]}  a5 {[%clk 0:01:38]} 20. Nd3 {[%clk 0:01:34]}  Nd7 {[%clk 0:01:38]} 21. Rad1 {[%clk 0:01:27]}  Rac8 {[%clk 0:01:36]} 22. Kh2 {[%clk 0:00:55]}  Qc7 {[%clk 0:01:35]} 23. Ng1 {[%clk 0:00:49]}  Be7 {[%clk 0:01:24]} 24. Rd2 {[%clk 0:00:26]}  Qc3 {[%clk 0:01:12]} 25. Qa2 {[%clk 0:00:24]}  Nc5 {[%clk 0:00:59]} 26. Nxc5 {[%clk 0:00:22]}  bxc5 {[%clk 0:00:49]} 27. Rd3 {[%clk 0:00:21]}  Qc4 {[%clk 0:00:49]} 28. Qb3 {[%clk 0:00:15]}  Qxb3 {[%clk 0:00:48]} 29. cxb3 {[%clk 0:00:15]}  c4 {[%clk 0:00:48]} 30. bxc4 {[%clk 0:00:15]}  dxc4 {[%clk 0:00:49]} 31. Rdd1 {[%clk 0:00:14]}  d3 {[%clk 0:00:41]} 32. Nf3 {[%clk 0:00:14]}  Rfd8 {[%clk 0:00:39]} 33. Ng5 {[%clk 0:00:12]}  c3 {[%clk 0:00:36]} 34. Ne4 {[%clk 0:00:11]}  c2 {[%clk 0:00:32]} 35. Rc1 {[%clk 0:00:10]}  Ba3 {[%clk 0:00:32]} 36. Bd2 {[%clk 0:00:07]}  Bxc1 {[%clk 0:00:31]} 37. Bxc1 {[%clk 0:00:07]}  Nd4 {[%clk 0:00:28]} 38. Nd6 {[%clk 0:00:06]}  Rxd6 {[%clk 0:00:16]} 39. exd6 {[%clk 0:00:06]}  Nf3+ {[%clk 0:00:13]} 40. Kg2 {[%clk 0:00:05]}  d2 {[%clk 0:00:13]} 41. Kxf3 {[%clk 0:00:00]}  d1=Q+ {[%clk 0:00:13]} 0-1


[Site "https://www.chess.com"]

[Event "Titled Tuesday Blitz October 31 Early 2023"]
[White "Garrido, Denis"]
[Black "Vargas, Mauricio"]
[WhiteFideId "601217"]
[BlackFideId "4404572"]
[WhiteElo "2284"]
[BlackElo "1857"]
[Result "1-0"]
[Round "11"]
[TimeControl "180+1"]
[Date "2023.10.31"]
[WhiteClock "0:00:16"]
[BlackClock "0:00:21"]
[Board "127"]

1. Nf3 {[%clk 0:02:55]}  Nc6 {[%clk 0:02:54]} 2. d4 {[%clk 0:02:51]}  g6 {[%clk 0:02:52]} 3. d5 {[%clk 0:02:49]}  Nb8 {[%clk 0:02:49]} 4. e4 {[%clk 0:02:46]}  d6 {[%clk 0:02:49]} 5. Be3 {[%clk 0:02:44]}  Bg7 {[%clk 0:02:24]} 6. Bd4 {[%clk 0:02:43]}  Nf6 {[%clk 0:02:00]} 7. Nbd2 {[%clk 0:02:14]}  Nbd7 {[%clk 0:01:58]} 8. a4 {[%clk 0:02:02]}  e5 {[%clk 0:01:58]} 9. dxe6 {[%clk 0:02:00]}  fxe6 {[%clk 0:01:57]} 10. a5 {[%clk 0:02:00]}  e5 {[%clk 0:01:57]} 11. Be3 {[%clk 0:01:54]}  O-O {[%clk 0:01:56]} 12. h3 {[%clk 0:01:54]}  Qe8 {[%clk 0:01:44]} 13. Nc4 {[%clk 0:01:33]}  Rf7 {[%clk 0:01:37]} 14. Qd3 {[%clk 0:01:10]}  Re7 {[%clk 0:01:37]} 15. Qb3 {[%clk 0:01:07]}  Kh8 {[%clk 0:01:34]} 16. Bd3 {[%clk 0:01:05]}  h6 {[%clk 0:01:33]} 17. Qa4 {[%clk 0:00:45]}  g5 {[%clk 0:01:32]} 18. b4 {[%clk 0:00:40]}  Qf7 {[%clk 0:01:24]} 19. Bd2 {[%clk 0:00:38]}  Nxe4 {[%clk 0:01:22]} 20. Bxe4 {[%clk 0:00:32]}  Qxc4 {[%clk 0:01:20]} 21. Bd3 {[%clk 0:00:19]}  Qf7 {[%clk 0:01:20]} 22. Nh2 {[%clk 0:00:15]}  Nf6 {[%clk 0:01:19]} 23. Be2 {[%clk 0:00:14]}  Bd7 {[%clk 0:01:17]} 24. Qb3 {[%clk 0:00:13]}  Be6 {[%clk 0:01:16]} 25. Qf3 {[%clk 0:00:10]}  Rf8 {[%clk 0:01:15]} 26. Qxb7 {[%clk 0:00:09]}  Nd5 {[%clk 0:01:14]} 27. O-O {[%clk 0:00:09]}  g4 {[%clk 0:01:11]} 28. hxg4 {[%clk 0:00:08]}  Nf4 {[%clk 0:01:10]} 29. Bf3 {[%clk 0:00:08]}  h5 {[%clk 0:01:08]} 30. Qe4 {[%clk 0:00:07]}  Bd5 {[%clk 0:01:06]} 31. Qf5 {[%clk 0:00:06]}  Bxf3 {[%clk 0:01:05]} 32. Nxf3 {[%clk 0:00:05]}  Qxf5 {[%clk 0:01:05]} 33. gxf5 {[%clk 0:00:06]}  Rxf5 {[%clk 0:01:05]} 34. Nh4 {[%clk 0:00:04]}  Rg5 {[%clk 0:01:05]} 35. g3 {[%clk 0:00:04]}  Bf6 {[%clk 0:01:02]} 36. Kh1 {[%clk 0:00:04]}  Ng6 {[%clk 0:00:46]} 37. Bxg5 {[%clk 0:00:02]}  Bxg5 {[%clk 0:00:44]} 38. Nxg6+ {[%clk 0:00:02]}  Kg7 {[%clk 0:00:45]} 39. Nxe7 {[%clk 0:00:03]}  Bxe7 {[%clk 0:00:45]} 40. a6 {[%clk 0:00:03]}  Bf6 {[%clk 0:00:45]} 41. Ra5 {[%clk 0:00:03]}  Kg6 {[%clk 0:00:44]} 42. Rb5 {[%clk 0:00:03]}  e4 {[%clk 0:00:39]} 43. Rb7 {[%clk 0:00:04]}  Bd4 {[%clk 0:00:38]} 44. Rd1 {[%clk 0:00:05]}  Bb6 {[%clk 0:00:38]} 45. Kg2 {[%clk 0:00:05]}  Kf5 {[%clk 0:00:37]} 46. Rxb6 {[%clk 0:00:05]}  Kg4 {[%clk 0:00:38]} 47. Rdxd6 {[%clk 0:00:06]}  axb6 {[%clk 0:00:37]} 48. Rc6 {[%clk 0:00:05]}  h4 {[%clk 0:00:34]} 49. gxh4 {[%clk 0:00:06]}  Kxh4 {[%clk 0:00:34]} 50. Re6 {[%clk 0:00:06]}  Kg4 {[%clk 0:00:35]} 51. Rxe4+ {[%clk 0:00:07]}  Kf5 {[%clk 0:00:35]} 52. Rc4 {[%clk 0:00:07]}  Ke5 {[%clk 0:00:35]} 53. Rxc7 {[%clk 0:00:08]}  Kd6 {[%clk 0:00:35]} 54. Rb7 {[%clk 0:00:09]}  Kc6 {[%clk 0:00:34]} 55. b5+ {[%clk 0:00:10]}  Kxb5 {[%clk 0:00:33]} 56. a7 {[%clk 0:00:11]}  Kc5 {[%clk 0:00:32]} 57. a8=Q {[%clk 0:00:12]}  b5 {[%clk 0:00:33]} 58. Qa7+ {[%clk 0:00:13]}  Kc4 {[%clk 0:00:33]} 59. Qb6 {[%clk 0:00:13]}  b4 {[%clk 0:00:32]} 60. Qb5+ {[%clk 0:00:14]}  Kd4 {[%clk 0:00:29]} 61. Qxb4+ {[%clk 0:00:15]}  Kd5 {[%clk 0:00:29]} 62. Rd7+ {[%clk 0:00:15]}  Ke6 {[%clk 0:00:29]} 63. Qd6+ {[%clk 0:00:15]}  Kf5 {[%clk 0:00:28]} 64. Rf7+ {[%clk 0:00:16]}  Ke4 {[%clk 0:00:28]} 65. Re7+ {[%clk 0:00:15]}  Kf5 {[%clk 0:00:21]} 66. Qf6+ {[%clk 0:00:16]} 1-0


[Site "https://www.chess.com"]